[Event "Titled Tuesday Blitz January 31 Late 2023"]
[White "Ortez, Andrea"]
[Black "Itkis, Boris"]
[WhiteFideId "6702392"]
[BlackFideId "1209167"]
[WhiteElo "1961"]
[BlackElo "2329"]
[Result "0-1"]
[Round "06"]
[TimeControl "180+2"]
[Date "2023.01.31"]
[WhiteClock "0:00:03"]
[BlackClock "0:00:37"]

1. e4 {[%clk 0:03:00]}  c6 {[%clk 0:02:57]} 2. d4 {[%clk 0:03:00]}  d5 {[%clk 0:02:58]} 3. exd5 {[%clk 0:02:54]}  cxd5 {[%clk 0:02:59]} 4. c4 {[%clk 0:02:54]}  Nf6 {[%clk 0:02:56]} 5. Nc3 {[%clk 0:02:54]}  g6 {[%clk 0:02:56]} 6. Qb3 {[%clk 0:02:51]}  Bg7 {[%clk 0:02:56]} 7. cxd5 {[%clk 0:02:51]}  O-O {[%clk 0:02:57]} 8. g3 {[%clk 0:02:51]}  Nbd7 {[%clk 0:02:51]} 9. Bg2 {[%clk 0:02:51]}  Nb6 {[%clk 0:02:52]} 10. Nge2 {[%clk 0:02:47]}  Bg4 {[%clk 0:02:50]} 11. Nf4 {[%clk 0:02:32]}  g5 {[%clk 0:02:35]} 12. Nd3 {[%clk 0:02:25]}  h6 {[%clk 0:02:34]} 13. Be3 {[%clk 0:02:16]}  Rc8 {[%clk 0:02:27]} 14. O-O {[%clk 0:02:12]}  Nc4 {[%clk 0:01:57]} 15. Ne5 {[%clk 0:01:57]}  Nd6 {[%clk 0:01:47]} 16. Rfe1 {[%clk 0:01:26]}  Bf5 {[%clk 0:01:46]} 17. Rad1 {[%clk 0:01:10]}  Ng4 {[%clk 0:01:44]} 18. h3 {[%clk 0:01:01]}  Nxe5 {[%clk 0:01:25]} 19. dxe5 {[%clk 0:00:56]}  Bxe5 {[%clk 0:01:26]} 20. Bxa7 {[%clk 0:00:45]}  Bf6 {[%clk 0:01:25]} 21. Bd4 {[%clk 0:00:43]}  Bxd4 {[%clk 0:01:20]} 22. Rxd4 {[%clk 0:00:44]}  Qa5 {[%clk 0:01:16]} 23. Rxe7 {[%clk 0:00:37]}  b5 {[%clk 0:01:14]} 24. h4 {[%clk 0:00:21]}  b4 {[%clk 0:01:13]} 25. Rxb4 {[%clk 0:00:18]}  Bc2 {[%clk 0:00:59]} 26. Qa3 {[%clk 0:00:15]}  Qc5 {[%clk 0:00:58]} 27. hxg5 {[%clk 0:00:10]}  hxg5 {[%clk 0:00:56]} 28. Rg4 {[%clk 0:00:10]}  Qxa3 {[%clk 0:00:55]} 29. Rxg5+ {[%clk 0:00:09]}  Bg6 {[%clk 0:00:55]} 30. bxa3 {[%clk 0:00:08]}  Rxc3 {[%clk 0:00:55]} 31. Rd7 {[%clk 0:00:06]}  Nc4 {[%clk 0:00:48]} 32. Be4 {[%clk 0:00:05]}  Nd2 {[%clk 0:00:44]} 33. Bxg6 {[%clk 0:00:05]}  Nf3+ {[%clk 0:00:45]} 34. Kg2 {[%clk 0:00:05]}  Nxg5 {[%clk 0:00:45]} 35. Bh5 {[%clk 0:00:04]}  Rxa3 {[%clk 0:00:44]} 36. f4 {[%clk 0:00:03]}  Ne4 {[%clk 0:00:43]} 37. Bf3 {[%clk 0:00:02]}  Rxa2+ {[%clk 0:00:42]} 38. Kh3 {[%clk 0:00:02]}  Nf2+ {[%clk 0:00:39]} 39. Kg2 {[%clk 0:00:01]}  Ng4+ {[%clk 0:00:37]} 40. Kh3 {[%clk 0:00:02]}  Nf6 {[%clk 0:00:37]} 41. Re7 {[%clk 0:00:02]}  Kg7 {[%clk 0:00:37]} 42. Re5 {[%clk 0:00:03]}  Rh8+ {[%clk 0:00:37]} 0-1


[Site "https://www.chess.com"]

[Event "Titled Tuesday Blitz January 31 Late 2023"]
[White "Bongo Akanga Ndjila, Barthelemy"]
[Black "Sliwicki, Damian"]
[WhiteFideId "10609431"]
[BlackFideId "1127128"]
[WhiteElo "1824"]
[BlackElo "2158"]
[Result "1-0"]
[Round "06"]
[TimeControl "180+2"]
[Date "2023.01.31"]
[WhiteClock "0:00:55"]
[BlackClock "0:00:01"]

1. d4 {[%clk 0:02:53]}  Nf6 {[%clk 0:02:57]} 2. Nf3 {[%clk 0:02:53]}  e6 {[%clk 0:02:49]} 3. c4 {[%clk 0:02:51]}  d5 {[%clk 0:02:48]} 4. cxd5 {[%clk 0:02:50]}  exd5 {[%clk 0:02:48]} 5. Bg5 {[%clk 0:02:50]}  Nbd7 {[%clk 0:02:47]} 6. Qc2 {[%clk 0:02:50]}  Be7 {[%clk 0:02:39]} 7. e3 {[%clk 0:02:49]}  O-O {[%clk 0:02:38]} 8. Bd3 {[%clk 0:02:50]}  Ne4 {[%clk 0:02:28]} 9. Bf4 {[%clk 0:02:48]}  Ndf6 {[%clk 0:01:46]} 10. Qxc7 {[%clk 0:02:43]}  Bb4+ {[%clk 0:01:31]} 11. Nbd2 {[%clk 0:02:39]}  Bg4 {[%clk 0:01:21]} 12. Qxd8 {[%clk 0:02:36]}  Rfxd8 {[%clk 0:01:22]} 13. a3 {[%clk 0:02:25]}  Ba5 {[%clk 0:00:53]} 14. b4 {[%clk 0:02:24]}  Bxf3 {[%clk 0:00:52]} 15. gxf3 {[%clk 0:02:11]}  Nxd2 {[%clk 0:00:50]} 16. Kxd2 {[%clk 0:02:10]}  Bb6 {[%clk 0:00:51]} 17. Rhg1 {[%clk 0:02:05]}  Kf8 {[%clk 0:00:46]} 18. Rac1 {[%clk 0:02:01]}  a5 {[%clk 0:00:35]} 19. Bc7 {[%clk 0:01:56]}  Bxc7 {[%clk 0:00:24]} 20. Rxc7 {[%clk 0:01:56]}  axb4 {[%clk 0:00:25]} 21. axb4 {[%clk 0:01:56]}  Ra2+ {[%clk 0:00:19]} 22. Bc2 {[%clk 0:01:55]}  b5 {[%clk 0:00:17]} 23. Kc3 {[%clk 0:01:49]}  Nd7 {[%clk 0:00:12]} 24. Kb3 {[%clk 0:01:47]}  Rda8 {[%clk 0:00:08]} 25. Kc3 {[%clk 0:01:44]}  Nb6 {[%clk 0:00:07]} 26. Rc5 {[%clk 0:01:40]}  Nc4 {[%clk 0:00:05]} 27. Rb1 {[%clk 0:01:18]}  R8a3+ {[%clk 0:00:04]} 28. Rb3 {[%clk 0:01:17]}  Rxc2+ {[%clk 0:00:02]} 29. Kxc2 {[%clk 0:01:14]}  Ra2+ {[%clk 0:00:03]} 30. Kc1 {[%clk 0:01:08]}  Rxf2 {[%clk 0:00:04]} 31. Rxd5 {[%clk 0:01:06]}  Rxf3 {[%clk 0:00:04]} 32. Rxb5 {[%clk 0:01:05]}  Rf1+ {[%clk 0:00:04]} 33. Kc2 {[%clk 0:01:03]}  Rf2+ {[%clk 0:00:02]} 34. Kd3 {[%clk 0:01:02]}  Nd6 {[%clk 0:00:01]} 35. Rb8+ {[%clk 0:01:01]}  Ke7 {[%clk 0:00:01]} 36. b5 {[%clk 0:01:01]}  Rxh2 {[%clk 0:00:01]} 37. b6 {[%clk 0:01:02]}  h5 {[%clk 0:00:01]} 38. b7 {[%clk 0:01:02]}  Nxb7 {[%clk 0:00:01]} 39. R3xb7+ {[%clk 0:01:01]}  Kf6 {[%clk 0:00:02]} 40. Rb5 {[%clk 0:01:00]}  h4 {[%clk 0:00:02]} 41. Ra8 {[%clk 0:01:00]}  g6 {[%clk 0:00:02]} 42. Ra7 {[%clk 0:00:59]}  h3 {[%clk 0:00:02]} 43. Rba5 {[%clk 0:00:56]}  Rh1 {[%clk 0:00:01]} 44. Ra1 {[%clk 0:00:55]} 1-0


[Site "https://www.chess.com"]

[Event "Titled Tuesday Blitz January 31 Late 2023"]
[White "Vargas, Mauricio"]
[Black "Alfaro, William"]
[WhiteFideId "4404572"]
[BlackFideId "6100457"]
[WhiteElo "2035"]
[BlackElo "2134"]
[Result "0-1"]
[Round "06"]
[TimeControl "180+2"]
[Date "2023.01.31"]
[WhiteClock "0:00:01"]
[BlackClock "0:00:23"]

1. e4 {[%clk 0:02:58]}  Nf6 {[%clk 0:02:57]} 2. e5 {[%clk 0:02:57]}  Nd5 {[%clk 0:02:57]} 3. Nc3 {[%clk 0:02:58]}  e6 {[%clk 0:02:56]} 4. f4 {[%clk 0:02:56]}  Nxf4 {[%clk 0:02:50]} 5. d3 {[%clk 0:02:52]}  Nd5 {[%clk 0:02:50]} 6. Nf3 {[%clk 0:02:47]}  c5 {[%clk 0:02:48]} 7. g3 {[%clk 0:02:45]}  Nc6 {[%clk 0:02:46]} 8. Bg2 {[%clk 0:02:45]}  Nxc3 {[%clk 0:02:45]} 9. bxc3 {[%clk 0:02:45]}  d5 {[%clk 0:02:46]} 10. O-O {[%clk 0:02:38]}  Be7 {[%clk 0:02:44]} 11. Qe1 {[%clk 0:02:38]}  O-O {[%clk 0:02:42]} 12. Bd2 {[%clk 0:02:32]}  f5 {[%clk 0:02:37]} 13. exf6 {[%clk 0:02:29]}  Bxf6 {[%clk 0:02:36]} 14. Rb1 {[%clk 0:02:21]}  b6 {[%clk 0:02:32]} 15. Qc1 {[%clk 0:02:17]}  Qd6 {[%clk 0:02:25]} 16. Ng5 {[%clk 0:02:14]}  e5 {[%clk 0:02:20]} 17. Qd1 {[%clk 0:02:10]}  h6 {[%clk 0:02:09]} 18. h4 {[%clk 0:01:53]}  hxg5 {[%clk 0:01:48]} 19. hxg5 {[%clk 0:01:53]}  Be7 {[%clk 0:01:47]} 20. Qh5 {[%clk 0:01:52]}  Bf5 {[%clk 0:01:43]} 21. Bxd5+ {[%clk 0:01:29]}  Qxd5 {[%clk 0:01:38]} 22. g6 {[%clk 0:01:29]}  Bxg6 {[%clk 0:01:34]} 23. Qxg6 {[%clk 0:01:29]}  Rxf1+ {[%clk 0:01:35]} 24. Rxf1 {[%clk 0:01:28]}  Rf8 {[%clk 0:01:35]} 25. Rxf8+ {[%clk 0:01:16]}  Kxf8 {[%clk 0:01:36]} 26. Qf5+ {[%clk 0:01:13]}  Ke8 {[%clk 0:01:32]} 27. Qc8+ {[%clk 0:01:11]}  Kf7 {[%clk 0:01:31]} 28. Qf5+ {[%clk 0:01:10]}  Bf6 {[%clk 0:01:29]} 29. g4 {[%clk 0:01:08]}  Ne7 {[%clk 0:01:25]} 30. Qf2 {[%clk 0:01:00]}  Kg6 {[%clk 0:01:21]} 31. Qh2 {[%clk 0:00:58]}  Kf7 {[%clk 0:00:46]} 32. Qh5+ {[%clk 0:00:54]}  Ke6 {[%clk 0:00:42]} 33. g5 {[%clk 0:00:47]}  e4 {[%clk 0:00:42]} 34. Qg4+ {[%clk 0:00:39]}  Kf7 {[%clk 0:00:34]} 35. gxf6 {[%clk 0:00:32]}  gxf6 {[%clk 0:00:33]} 36. Qxe4 {[%clk 0:00:25]}  Qxe4 {[%clk 0:00:34]} 37. dxe4 {[%clk 0:00:25]}  Ke6 {[%clk 0:00:34]} 38. Bf4 {[%clk 0:00:23]}  f5 {[%clk 0:00:33]} 39. exf5+ {[%clk 0:00:22]}  Nxf5 {[%clk 0:00:33]} 40. Kf2 {[%clk 0:00:20]}  Kd5 {[%clk 0:00:33]} 41. Bb8 {[%clk 0:00:17]}  a6 {[%clk 0:00:32]} 42. Kf3 {[%clk 0:00:15]}  Ne7 {[%clk 0:00:28]} 43. Kf4 {[%clk 0:00:13]}  Kc4 {[%clk 0:00:25]} 44. Be5 {[%clk 0:00:12]}  Nd5+ {[%clk 0:00:24]} 45. Ke4 {[%clk 0:00:08]}  Nxc3+ {[%clk 0:00:25]} 46. Kf3 {[%clk 0:00:06]}  Nxa2 {[%clk 0:00:25]} 47. Bc7 {[%clk 0:00:04]}  b5 {[%clk 0:00:24]} 48. Ba5 {[%clk 0:00:03]}  Nb4 {[%clk 0:00:22]} 49. Ke2 {[%clk 0:00:01]}  Nxc2 {[%clk 0:00:22]} 50. Kd2 {[%clk 0:00:01]}  Nd4 {[%clk 0:00:23]} 0-1


[Site "https://www.chess.com"]

[Event "Titled Tuesday Blitz January 31 Late 2023"]
[White "Desideri, Ricardo Maruchi"]
[Black "Onslow, Alfie"]
[WhiteFideId "2110440"]
[BlackFideId "436976"]
[WhiteElo "1959"]
[BlackElo "2157"]
[Result "1-0"]
[Round "06"]
[TimeControl "180+2"]
[Date "2023.01.31"]
[WhiteClock "0:00:06"]
[BlackClock "0:00:02"]

1. e4 {[%clk 0:02:28]}  c6 {[%clk 0:02:59]} 2. d4 {[%clk 0:02:27]}  d5 {[%clk 0:02:59]} 3. e5 {[%clk 0:02:28]}  Bf5 {[%clk 0:02:58]} 4. h4 {[%clk 0:02:28]}  h5 {[%clk 0:02:57]} 5. Bd3 {[%clk 0:02:27]}  Bxd3 {[%clk 0:02:57]} 6. Qxd3 {[%clk 0:02:27]}  Qa5+ {[%clk 0:02:57]} 7. b4 {[%clk 0:02:28]}  Qxb4+ {[%clk 0:02:56]} 8. Nd2 {[%clk 0:02:25]}  Qb5 {[%clk 0:02:46]} 9. c4 {[%clk 0:02:23]}  dxc4 {[%clk 0:02:44]} 10. Nxc4 {[%clk 0:02:23]}  e6 {[%clk 0:02:43]} 11. Rb1 {[%clk 0:02:22]}  Qd5 {[%clk 0:02:22]} 12. Nf3 {[%clk 0:02:18]}  b5 {[%clk 0:02:21]} 13. Ne3 {[%clk 0:02:04]}  Qxa2 {[%clk 0:02:20]} 14. O-O {[%clk 0:01:59]}  Nd7 {[%clk 0:01:59]} 15. Bd2 {[%clk 0:01:47]}  Qa6 {[%clk 0:01:55]} 16. Rfc1 {[%clk 0:01:45]}  Ne7 {[%clk 0:01:46]} 17. Ng5 {[%clk 0:01:39]}  Nb6 {[%clk 0:01:26]} 18. Bb4 {[%clk 0:01:17]}  Nbd5 {[%clk 0:01:18]} 19. Nxd5 {[%clk 0:01:11]}  Nxd5 {[%clk 0:01:15]} 20. Bxf8 {[%clk 0:01:04]}  Rxf8 {[%clk 0:01:10]} 21. Ne4 {[%clk 0:00:52]}  Rd8 {[%clk 0:00:45]} 22. Nd6+ {[%clk 0:00:51]}  Rxd6 {[%clk 0:00:44]} 23. exd6 {[%clk 0:00:51]}  Kd7 {[%clk 0:00:44]} 24. Qg3 {[%clk 0:00:47]}  g6 {[%clk 0:00:42]} 25. Ra1 {[%clk 0:00:43]}  Qb6 {[%clk 0:00:42]} 26. Rc5 {[%clk 0:00:40]}  a5 {[%clk 0:00:16]} 27. Rac1 {[%clk 0:00:39]}  Rc8 {[%clk 0:00:16]} 28. Qf3 {[%clk 0:00:37]}  f5 {[%clk 0:00:15]} 29. Qg3 {[%clk 0:00:35]}  a4 {[%clk 0:00:11]} 30. Qxg6 {[%clk 0:00:25]}  Kxd6 {[%clk 0:00:11]} 31. Re1 {[%clk 0:00:20]}  Nc7 {[%clk 0:00:08]} 32. Rxf5 {[%clk 0:00:14]}  Qxd4 {[%clk 0:00:06]} 33. Rf3 {[%clk 0:00:12]}  Qc4 {[%clk 0:00:04]} 34. Rd3+ {[%clk 0:00:11]}  Kc5 {[%clk 0:00:04]} 35. Qxh5+ {[%clk 0:00:10]}  Kb6 {[%clk 0:00:04]} 36. Rde3 {[%clk 0:00:09]}  b4 {[%clk 0:00:02]} 37. Re4 {[%clk 0:00:08]}  Qc5 {[%clk 0:00:02]} 38. Qg4 {[%clk 0:00:08]}  Rd8 {[%clk 0:00:02]} 39. Rxb4+ {[%clk 0:00:07]}  Nb5 {[%clk 0:00:02]} 40. Rxa4 {[%clk 0:00:07]}  e5 {[%clk 0:00:02]} 41. Rea1 {[%clk 0:00:06]} 1-0


[Site "https://www.chess.com"]

[Event "Titled Tuesday Blitz January 31 Late 2023"]
[White "Araujo, Everson De Moura"]
[Black "Nunez V, Gustavo Eduardo"]
[WhiteFideId "22737197"]
[BlackFideId "4403690"]
[WhiteElo "1944"]
[BlackElo "2212"]
[Result "0-1"]
[Round "06"]
[TimeControl "180+2"]
[Date "2023.01.31"]
[WhiteClock "0:00:54"]
[BlackClock "0:01:25"]

1. c4 {[%clk 0:02:56]}  g6 {[%clk 0:02:58]} 2. g3 {[%clk 0:02:53]}  Bg7 {[%clk 0:02:55]} 3. Bg2 {[%clk 0:02:53]}  Nf6 {[%clk 0:02:55]} 4. e4 {[%clk 0:02:50]}  O-O {[%clk 0:02:56]} 5. Ne2 {[%clk 0:02:49]}  d6 {[%clk 0:02:57]} 6. Nbc3 {[%clk 0:02:49]}  e5 {[%clk 0:02:54]} 7. d3 {[%clk 0:02:49]}  h6 {[%clk 0:02:52]} 8. O-O {[%clk 0:02:49]}  Nc6 {[%clk 0:02:50]} 9. h3 {[%clk 0:02:50]}  Be6 {[%clk 0:02:48]} 10. Be3 {[%clk 0:02:51]}  Qd7 {[%clk 0:02:48]} 11. Kh2 {[%clk 0:02:51]}  Ne8 {[%clk 0:02:46]} 12. Qd2 {[%clk 0:02:49]}  Kh7 {[%clk 0:02:47]} 13. f4 {[%clk 0:02:44]}  f5 {[%clk 0:02:47]} 14. d4 {[%clk 0:02:34]}  exd4 {[%clk 0:02:40]} 15. Nxd4 {[%clk 0:02:34]}  Bxc4 {[%clk 0:02:40]} 16. Rfd1 {[%clk 0:02:27]}  Nxd4 {[%clk 0:02:24]} 17. Bxd4 {[%clk 0:02:28]}  Bxd4 {[%clk 0:01:58]} 18. Qxd4 {[%clk 0:02:27]}  Be6 {[%clk 0:01:58]} 19. exf5 {[%clk 0:02:27]}  Bxf5 {[%clk 0:01:59]} 20. Bxb7 {[%clk 0:02:26]}  Rb8 {[%clk 0:01:59]} 21. Bg2 {[%clk 0:01:37]}  Rxb2 {[%clk 0:01:54]} 22. Rd2 {[%clk 0:01:37]}  Rxd2 {[%clk 0:01:42]} 23. Qxd2 {[%clk 0:01:38]}  Nf6 {[%clk 0:01:42]} 24. Re1 {[%clk 0:01:32]}  Re8 {[%clk 0:01:40]} 25. Nd5 {[%clk 0:01:24]}  Nxd5 {[%clk 0:01:37]} 26. Rxe8 {[%clk 0:01:23]}  Qxe8 {[%clk 0:01:33]} 27. Qxd5 {[%clk 0:01:23]}  Qd7 {[%clk 0:01:26]} 28. Qb7 {[%clk 0:01:07]}  c5 {[%clk 0:01:25]} 29. Qxd7+ {[%clk 0:01:02]}  Bxd7 {[%clk 0:01:26]} 30. Bd5 {[%clk 0:01:02]}  Kg7 {[%clk 0:01:25]} 31. Kg2 {[%clk 0:01:02]}  Kf6 {[%clk 0:01:25]} 32. Kf3 {[%clk 0:01:03]}  Be6 {[%clk 0:01:26]} 33. Ke4 {[%clk 0:00:59]}  Bxh3 {[%clk 0:01:26]} 34. a4 {[%clk 0:00:54]}  Bg2+ {[%clk 0:01:25]} 0-1


[Site "https://www.chess.com"]

[Event "Titled Tuesday Blitz January 31 Late 2023"]
[White "Yu, Yangyi"]
[Black "Mosadeghpour, Masoud"]
[WhiteFideId "8603820"]
[BlackFideId "12519278"]
[WhiteElo "2729"]
[BlackElo "2472"]
[Result "1/2-1/2"]
[Round "07"]
[TimeControl "180+2"]
[Date "2023.01.31"]
[WhiteClock "0:01:38"]
[BlackClock "0:02:30"]

1. Nf3 {[%clk 0:03:00]}  Nf6 {[%clk 0:03:00]} 2. g3 {[%clk 0:03:00]}  e6 {[%clk 0:03:00]} 3. Bg2 {[%clk 0:03:00]}  d5 {[%clk 0:03:01]} 4. O-O {[%clk 0:02:58]}  c5 {[%clk 0:03:00]} 5. c4 {[%clk 0:02:54]}  d4 {[%clk 0:03:00]} 6. e3 {[%clk 0:02:51]}  Nc6 {[%clk 0:03:00]} 7. d3 {[%clk 0:02:51]}  Be7 {[%clk 0:03:00]} 8. exd4 {[%clk 0:02:48]}  cxd4 {[%clk 0:03:00]} 9. Na3 {[%clk 0:02:41]}  O-O {[%clk 0:02:59]} 10. Re1 {[%clk 0:02:39]}  Nd7 {[%clk 0:02:56]} 11. Nc2 {[%clk 0:02:35]}  a5 {[%clk 0:02:55]} 12. Bf4 {[%clk 0:02:29]}  Nc5 {[%clk 0:02:52]} 13. Ne5 {[%clk 0:02:27]}  Nb4 {[%clk 0:02:47]} 14. a3 {[%clk 0:01:56]}  Nxc2 {[%clk 0:02:45]} 15. Qxc2 {[%clk 0:01:57]}  a4 {[%clk 0:02:44]} 16. Nf3 {[%clk 0:01:53]}  f6 {[%clk 0:02:42]} 17. Bd2 {[%clk 0:01:52]}  e5 {[%clk 0:02:42]} 18. Bb4 {[%clk 0:01:52]}  Nb3 {[%clk 0:02:38]} 19. Rad1 {[%clk 0:01:49]}  Bxb4 {[%clk 0:02:37]} 20. axb4 {[%clk 0:01:49]}  Qb6 {[%clk 0:02:37]} 21. b5 {[%clk 0:01:47]}  Be6 {[%clk 0:02:34]} 22. Nd2 {[%clk 0:01:46]}  Nc5 {[%clk 0:02:33]} 23. Ne4 {[%clk 0:01:44]}  Nb3 {[%clk 0:02:31]} 24. Nd2 {[%clk 0:01:38]}  Nc5 {[%clk 0:02:30]} 1/2-1/2


[Site "https://www.chess.com"]

[Event "Titled Tuesday Blitz January 31 Late 2023"]
[White "Dubov, Daniil"]
[Black "Duda, Jan-Krzysztof"]
[WhiteFideId "24126055"]
[BlackFideId "1170546"]
[WhiteElo "2708"]
[BlackElo "2724"]
[Result "1-0"]
[Round "07"]
[TimeControl "180+2"]
[Date "2023.01.31"]
[WhiteClock "0:00:25"]
[BlackClock "0:00:03"]

1. d4 {[%clk 0:03:00]}  d5 {[%clk 0:02:59]} 2. Nf3 {[%clk 0:03:00]}  Nf6 {[%clk 0:02:59]} 3. c4 {[%clk 0:03:01]}  c6 {[%clk 0:02:56]} 4. Nc3 {[%clk 0:02:58]}  e6 {[%clk 0:02:53]} 5. g3 {[%clk 0:02:51]}  dxc4 {[%clk 0:02:51]} 6. Bg2 {[%clk 0:02:51]}  b5 {[%clk 0:02:51]} 7. Ne5 {[%clk 0:02:51]}  Nd5 {[%clk 0:02:47]} 8. O-O {[%clk 0:02:50]}  Bb7 {[%clk 0:02:45]} 9. a4 {[%clk 0:02:50]}  a6 {[%clk 0:02:42]} 10. Ne4 {[%clk 0:02:49]}  f6 {[%clk 0:02:22]} 11. Nf3 {[%clk 0:02:47]}  Nd7 {[%clk 0:02:16]} 12. Bd2 {[%clk 0:02:40]}  Be7 {[%clk 0:02:07]} 13. Bh3 {[%clk 0:02:36]}  Kf7 {[%clk 0:02:06]} 14. b3 {[%clk 0:02:34]}  cxb3 {[%clk 0:02:05]} 15. Qxb3 {[%clk 0:02:33]}  Re8 {[%clk 0:01:42]} 16. Bf4 {[%clk 0:01:49]}  h6 {[%clk 0:00:27]} 17. Rfc1 {[%clk 0:01:39]}  N7b6 {[%clk 0:00:20]} 18. Bd2 {[%clk 0:01:20]}  Rb8 {[%clk 0:00:16]} 19. axb5 {[%clk 0:01:18]}  cxb5 {[%clk 0:00:16]} 20. Ba5 {[%clk 0:01:14]}  Qd7 {[%clk 0:00:15]} 21. Bxb6 {[%clk 0:00:39]}  Nxb6 {[%clk 0:00:15]} 22. Rc7 {[%clk 0:00:40]}  Qxc7 {[%clk 0:00:05]} 23. Qxe6+ {[%clk 0:00:34]}  Kf8 {[%clk 0:00:06]} 24. Nh4 {[%clk 0:00:35]}  g5 {[%clk 0:00:03]} 25. Nxf6 {[%clk 0:00:26]}  Bxf6 {[%clk 0:00:03]} 26. Qxf6+ {[%clk 0:00:27]}  Kg8 {[%clk 0:00:03]} 27. Nf5 {[%clk 0:00:25]} 1-0


[Site "https://www.chess.com"]

[Event "Titled Tuesday Blitz January 31 Late 2023"]
[White "Chigaev, Maksim"]
[Black "So, Wesley"]
[WhiteFideId "4108116"]
[BlackFideId "5202213"]
[WhiteElo "2628"]
[BlackElo "2760"]
[Result "1-0"]
[Round "07"]
[TimeControl "180+2"]
[Date "2023.01.31"]
[WhiteClock "0:00:45"]
[BlackClock "0:01:28"]

1. e4 {[%clk 0:03:00]}  c5 {[%clk 0:02:58]} 2. Nf3 {[%clk 0:03:01]}  d6 {[%clk 0:02:58]} 3. d4 {[%clk 0:03:01]}  cxd4 {[%clk 0:02:59]} 4. Nxd4 {[%clk 0:03:01]}  Nf6 {[%clk 0:02:59]} 5. Nc3 {[%clk 0:03:02]}  a6 {[%clk 0:02:59]} 6. Bg5 {[%clk 0:03:03]}  e6 {[%clk 0:02:57]} 7. Qf3 {[%clk 0:03:00]}  h6 {[%clk 0:02:55]} 8. Bd2 {[%clk 0:02:58]}  Qb6 {[%clk 0:02:42]} 9. Nb3 {[%clk 0:02:55]}  Qc7 {[%clk 0:02:39]} 10. O-O-O {[%clk 0:02:40]}  b5 {[%clk 0:02:38]} 11. Bd3 {[%clk 0:02:33]}  Bb7 {[%clk 0:02:36]} 12. Qg3 {[%clk 0:02:31]}  Nbd7 {[%clk 0:02:29]} 13. Rhe1 {[%clk 0:02:30]}  b4 {[%clk 0:02:26]} 14. Nd5 {[%clk 0:02:09]}  exd5 {[%clk 0:02:27]} 15. exd5+ {[%clk 0:02:09]}  Kd8 {[%clk 0:02:25]} 16. Bxb4 {[%clk 0:02:07]}  a5 {[%clk 0:02:25]} 17. Ba3 {[%clk 0:02:05]}  Nxd5 {[%clk 0:02:15]} 18. Bb5 {[%clk 0:01:37]}  Nb4 {[%clk 0:02:02]} 19. Bxb4 {[%clk 0:01:26]}  axb4 {[%clk 0:02:03]} 20. Qe3 {[%clk 0:01:19]}  Qc8 {[%clk 0:01:52]} 21. Qe8+ {[%clk 0:01:05]}  Kc7 {[%clk 0:01:52]} 22. Qxf7 {[%clk 0:01:06]}  Ba6 {[%clk 0:01:40]} 23. Nd4 {[%clk 0:00:46]}  Bxb5 {[%clk 0:01:28]} 24. Nxb5+ {[%clk 0:00:47]}  Kb8 {[%clk 0:01:28]} 25. Re8 {[%clk 0:00:45]} 1-0


[Site "https://www.chess.com"]